bitfinex/quotes_SOLUSD_20250206
["timestamp","ask_amount","ask_price","bid_price","bid_amount"]
[1738802986062,0.37647,196.9,196.81,20.59790468]
[1738802986063,15.48710468,196.87,196.81,0.03]
[1738802986821,15.48710468,196.87,196.81,5.111]
[1738802987044,68.04493148,196.9,196.84,15.48710468]
[1738802987217,68.04493148,196.9,196.86,15.48710468]
[1738802987422,7.84493148,196.9,196.86,15.48710468]
[1738802987849,7.84493148,196.9,196.87,5.0794]
[1738802988011,12.00493148,196.9,196.87,5.0794]
[1738802988214,7.84493148,196.89,196.87,5.0794]
[1738802988406,7.84493148,196.89,196.86,2.91972278]
[1738802988613,7.84493148,196.89,196.86,15.48710468]
[1738802989051,4.223,196.91,196.86,15.48710468]
[1738802989350,0.063,196.91,196.88,15.48710468]
[1738802989543,0.063,196.91,196.9,15.48710468]
[1738802990169,0.063,196.91,196.9,20.56580468]
[1738802993961,0.063,196.91,196.87,15.48710468]
[1738802994129,0.063,196.91,196.87,20.56640468]
[1738802998581,0.063,196.91,196.89,15.48710468]
[1738803000173,0.063,196.91,196.9,15.48710468]
[1738803000555,0.063,196.91,196.9,20.56580468]
[1738803001574,0.063,196.91,196.88,5.079]
[1738803001951,0.063,196.91,196.88,20.56610468]
[1738803002477,0.063,196.91,196.9,15.48710468]
[1738803002844,0.063,196.91,196.88,20.56610468]
[1738803003268,0.063,196.91,196.88,5.079]
[1738803003458,0.063,196.91,196.87,15.48710468]
[1738803003869,0.063,196.91,196.86,5.0794]
[1738803005480,0.063,196.91,196.84,15.48710468]
[1738803005777,0.063,196.91,196.88,15.48710468]
[1738803005955,0.063,196.91,196.89,15.48710468]
[1738803007985,0.063,196.91,196.9,20.56580468]
[1738803008157,0.063,196.92,196.9,49.46475789]
[1738803008359,0.063,196.92,196.91,29.66045452]
[1738803009384,0.063,196.92,196.91,30.19505663]
[1738803010388,0.063,196.92,196.91,35.27345663]
[1738803011195,32.52927286,196.98,196.94,13.41184853]
[1738803011196,7.84493148,196.98,196.94,13.41184853]
[1738803011494,7.84493148,196.98,196.97,15.48710468]
[1738803011665,4.16,197.06,196.92,15.48710468]
[1738803011666,15.48710468,196.99,196.92,15.48710468]
[1738803011862,15.48710468,196.98,196.91,20.56550468]
[1738803012064,15.48710468,196.98,196.91,5.0784]
[1738803012869,15.48710468,196.97,196.91,5.0784]
[1738803013776,15.48710468,196.99,196.91,5.0784]
[1738803014604,20.56360468,196.99,196.91,5.0784]
[1738803014799,15.48710468,196.99,196.92,15.48710468]
[1738803015106,7.84493148,197.01,196.97,15.48710468]
[1738803015295,7.84493148,197.01,196.99,15.48710468]
[1738803015467,30.0,197.0,196.99,15.48710468]
[1738803016184,7.84493148,197.01,196.99,15.48710468]
[1738803016384,4.16,197.02,197.0,15.48710468]
[1738803016599,4.16,197.02,197.01,15.48710468]
[1738803016979,38.84097743,197.06,197.01,15.48710468]
[1738803017181,38.84097743,197.06,197.04,15.48710468]
[1738803017806,38.84097743,197.06,197.03,15.48710468]
[1738803018500,38.84097743,197.06,197.05,15.48710468]
[1738803018883,0.063,197.11,197.08,1.0]
[1738803019202,7.84493148,197.14,197.1,44.38605789]
[1738803019509,7.84493148,197.14,197.08,15.48710468]
[1738803019998,7.84493148,197.14,197.1,15.48710468]
[1738803020407,7.84493148,197.14,197.11,5.0733]
[1738803021280,7.84493148,197.14,197.11,18.48514853]
[1738803021485,7.84493148,197.14,197.11,5.0733]
[1738803021690,35.15604595,197.17,197.09,20.56080468]
[1738803021691,24.71890468,197.17,197.09,20.56080468]
[1738803021907,84.91890468,197.17,197.09,15.48710468]
[1738803022211,15.48710468,197.15,197.07,20.56120468]
[1738803022570,89.07541908,197.17,197.09,24.71541908]
[1738803023193,94.14721908,197.17,197.09,24.71541908]
[1738803023799,5.0721,197.16,197.09,24.71541908]
[1738803024167,89.07541908,197.17,197.09,24.71541908]
[1738803024372,64.36,197.17,197.11,29.78871908]
[1738803024589,60.2,197.17,197.11,29.78871908]
[1738803024788,4.14,197.15,197.11,29.78871908]
[1738803025288,0.063,197.18,197.11,43.20056761]
[1738803025499,4.203,197.18,197.11,43.20056761]
[1738803025807,4.203,197.18,197.11,29.78871908]
[1738803029601,24.96639908,197.17,197.1,24.71541908]
[1738803029805,24.71541908,197.15,197.07,24.71541908]
[1738803030617,24.71541908,197.13,197.06,24.71541908]
[1738803030826,24.71541908,197.11,197.04,24.71541908]
[1738803031697,0.37647,197.1,197.01,24.71541908]
[1738803031906,24.71541908,197.08,197.0,29.79151908]
[1738803032093,4.14,197.07,197.0,29.79151908]
[1738803032295,4.14,197.07,197.01,24.71541908]
[1738803032702,29.78991908,197.06,196.98,29.79191908]
[1738803032895,84.91541908,197.05,196.97,24.71541908]
[1738803033219,84.91541908,197.05,196.98,24.71541908]
[1738803033418,60.2,197.05,196.98,24.71541908]
[1738803033638,84.91541908,197.05,196.98,24.71541908]
[1738803034000,30.0,197.04,196.98,24.71541908]
[1738803034200,30.0,197.04,197.0,24.71541908]
[1738803034804,30.0,197.04,196.99,24.71541908]
[1738803035005,60.2,197.05,196.99,24.71541908]
[1738803035195,24.71541908,197.04,196.97,24.71541908]
[1738803035390,24.71541908,197.01,196.93,24.71541908]
[1738803035702,24.71541908,197.0,196.93,24.71541908]
[1738803035919,29.79171908,197.0,196.92,24.74541908]
[1738803036101,30.0,196.99,196.92,24.74541908]
[1738803036829,30.0,196.99,196.93,24.71541908]
[1738803037003,30.0,196.99,196.94,24.71541908]
[1738803037696,5.0763,197.0,196.94,24.71541908]
[1738803038225,84.91541908,197.01,196.94,29.79301908]
[1738803038397,89.99121908,197.01,196.94,29.79301908]
[1738803039418,89.99121908,197.01,196.94,24.71541908]
[1738803039724,60.2,197.01,196.97,24.71541908]
[1738803039932,60.2,197.01,196.94,0.03]
[1738803039933,4.14,197.0,196.96,24.71541908]
[1738803040111,4.14,197.0,196.94,24.74541908]
[1738803040521,24.71541908,196.99,196.94,0.03]
[1738803041512,33.93151908,197.0,196.94,0.03]
[1738803042110,9.2161,197.0,196.94,0.03]
[1738803042322,30.0,196.98,196.94,0.03]
[1738803042507,30.0,196.98,196.95,24.71541908]
[1738803042705,30.0,196.98,196.94,24.74541908]
[1738803042934,9.2161,197.0,196.94,0.03]
[1738803043439,85.29188908,196.99,196.94,0.03]
[1738803043737,24.71541908,196.98,196.94,0.03]
[1738803043942,25.09188908,196.97,196.94,0.03]
[1738803044106,60.2,196.96,196.94,0.03]
[1738803044305,84.91541908,196.96,196.94,0.03]
[1738803044621,5.0774,196.95,196.94,0.03]
[1738803045432,5.0774,196.95,196.92,0.02629149]
[1738803047430,15.85519605,196.93,196.92,0.02629149]
[1738803047921,45.85519605,196.93,196.92,0.02629149]
[1738803048436,15.85519605,196.93,196.92,0.02629149]
[1738803049313,5.45437,196.93,196.92,0.02629149]
[1738803049837,20.93309605,196.93,196.92,0.02629149]
[1738803050029,21.70012605,196.94,196.92,0.02629149]
[1738803050226,4.16,196.93,196.92,0.02629149]
[1738803050439,15.47872605,196.96,196.92,0.02629149]
[1738803050737,4.16,196.95,196.92,0.02629149]
[1738803051536,30.0,196.93,196.92,0.02629149]
[1738803052043,4.223,196.95,196.92,15.50501754]
[1738803052216,4.223,196.95,196.93,15.47872605]
[1738803052415,4.223,196.95,196.92,15.50501754]
[1738803054355,0.063,196.95,196.94,15.47872605]
[1738803056126,0.063,196.95,196.94,20.55632605]
[1738803057832,0.063,196.95,196.94,33.96817458]
[1738803058033,0.0001,196.95,196.94,33.96817458]
[1738803058342,0.0001,196.95,196.94,36.72945658]
[1738803058562,32.07577281,197.04,196.98,13.41184853]
[1738803058717,32.07577281,197.04,197.03,15.47872605]
[1738803059537,4.16,197.05,197.03,15.47872605]
[1738803060047,28.39695753,197.11,197.03,15.47872605]
[1738803060048,4.16,197.07,197.03,15.47872605]
[1738803060356,4.16,197.07,196.97,20.55552605]
[1738803060357,15.47872605,197.04,196.97,20.55552605]
[1738803060549,15.47872605,197.04,196.96,20.55582605]
[1738803060864,15.47872605,197.04,196.97,15.47872605]
[1738803061169,60.2,197.06,196.99,15.47872605]
[1738803061170,75.67872605,197.06,196.99,15.47872605]
[1738803062257,75.67872605,197.06,196.98,15.47872605]
[1738803062651,24.74371098,197.05,196.98,24.74371098]
[1738803062823,24.74371098,197.05,196.95,24.74371098]
[1738803062824,24.74371098,197.02,196.95,24.74371098]
[1738803063618,24.74371098,197.02,196.95,29.82111098]
[1738803063819,24.74371098,197.02,196.95,24.74371098]
[1738803064022,24.74371098,197.0,196.93,24.74371098]
[1738803064252,24.74371098,196.99,196.92,26.40450247]
[1738803064971,24.74371098,197.01,196.94,24.74371098]
[1738803065146,60.2,197.03,196.97,24.74371098]
[1738803065346,32.07632808,197.04,196.98,24.74371098]
[1738803066060,60.2,197.03,196.97,24.74371098]
[1738803067066,84.94371098,197.03,196.96,24.74371098]
[1738803067272,24.74371098,197.0,196.93,24.74371098]
[1738803067853,0.37647,197.02,196.94,24.74371098]
[1738803067854,25.12018098,197.02,196.94,24.74371098]
[1738803068034,25.12018098,197.02,196.93,5.0778]
[1738803068035,90.01901098,197.03,196.95,29.82101098]
[1738803068245,24.74371098,197.02,196.95,29.82101098]
[1738803068433,24.74371098,197.02,196.94,24.74371098]
[1738803069569,24.74371098,197.02,196.94,29.82111098]
[1738803069570,24.74371098,197.01,196.94,29.82111098]
[1738803069949,90.01961098,197.01,196.94,24.74371098]
[1738803071668,84.94371098,197.01,196.94,24.74371098]
[1738803071871,84.94371098,197.01,196.95,5.0774]
[1738803072971,84.94371098,197.01,196.94,24.74371098]
[1738803073979,4.14,197.0,196.96,24.74371098]
[1738803074279,60.2,197.01,196.96,24.74371098]
[1738803074456,4.14,197.0,196.96,24.74371098]
[1738803074844,32.07632808,197.04,196.98,24.74371098]
[1738803075151,4.14,197.08,197.03,24.74371098]
[1738803075357,4.14,197.08,197.05,24.74371098]
[1738803075555,11.98493148,197.09,197.05,24.74371098]
[1738803075757,11.98493148,197.09,197.05,29.81851098]
[1738803076164,4.14,197.09,197.05,29.81851098]
[1738803077649,4.14,197.09,197.03,29.81881098]
[1738803077855,4.14,197.09,197.04,24.74371098]
[1738803078049,7.84493148,197.11,197.05,25.50481678]
[1738803078243,7.84493148,197.11,197.1,24.74371098]
[1738803078645,0.063,197.12,197.1,24.74371098]
[1738803079073,0.063,197.12,197.11,24.74371098]
[1738803081381,0.063,197.12,197.11,45.35727621]
[1738803081382,0.0001,197.12,197.11,45.35727621]
[1738803082093,0.063,197.15,197.14,22.0]
[1738803082094,0.0001,197.15,197.14,22.0]
[1738803082282,0.0001,197.15,197.14,60.91603177]
[1738803082670,0.0001,197.15,197.14,50.60049248]
[1738803083180,0.0001,197.15,197.14,56.67299248]
[1738803083383,0.063,197.21,197.16,1.0]
[1738803083559,0.063,197.21,197.2,15.42817169]
[1738803083761,0.063,197.21,197.2,45.02856621]
[1738803084156,7.90793148,197.26,197.21,14.41184853]
[1738803084351,7.90793148,197.26,197.25,15.42817169]
[1738803084556,0.063,197.26,197.25,15.42817169]
[1738803084797,0.063,197.26,197.24,24.6752993]
[1738803084958,0.063,197.26,197.23,24.6752993]
[1738803085293,0.063,197.26,197.2,24.6752993]
[1738803085664,24.6752993,197.25,197.18,29.7465993]
[1738803086697,24.6752993,197.24,197.17,24.6752993]
[1738803086866,24.6752993,197.24,197.16,29.7469993]
[1738803087695,24.6752993,197.24,197.17,24.6752993]
[1738803087867,65.2697,197.25,197.18,24.6752993]
[1738803087868,0.063,197.21,197.18,24.6752993]
[1738803088604,89.0152993,197.2,197.12,24.6752993]
[1738803089173,89.0152993,197.2,197.13,24.6752993]
[1738803089373,60.2,197.19,197.13,24.6752993]
[1738803089698,24.6752993,197.17,197.09,24.6752993]
[1738803089881,24.6752993,197.15,197.08,5.0738]
[1738803090080,84.8752993,197.15,197.08,5.0738]
[1738803090293,84.8752993,197.15,197.08,29.7490993]
[1738803091876,60.2,197.15,197.08,29.7490993]
[1738803092805,24.6752993,197.12,197.05,24.7052993]
[1738803092975,24.6752993,197.09,197.05,0.03]
[1738803093174,4.14,197.08,197.05,0.03]
[1738803094808,60.2,197.07,197.05,0.03]
[1738803095099,65.2743,197.07,197.05,0.03]
[1738803095675,60.2,197.06,197.05,0.03]
[1738803095875,90.2007793,197.06,197.05,0.03]
[1738803096689,90.3262693,197.06,197.05,0.03]
[1738803097886,0.25098,197.05,196.99,24.6752993]
[1738803098084,60.2,197.04,196.99,24.6752993]
[1738803098286,60.2,197.04,197.0,24.6752993]
[1738803098483,60.2,197.04,196.98,24.6752993]
[1738803098743,65.2751,197.04,196.98,24.6752993]
[1738803098881,0.25098,197.03,196.97,24.6752993]
[1738803099081,60.2,197.02,196.95,24.7052993]
[1738803099285,84.8752993,197.02,196.95,24.7052993]
[1738803099580,84.8752993,197.02,196.98,0.03]
[1738803101916,45.0517693,196.99,196.98,0.03]
[1738803103119,25.0517693,196.99,196.98,0.03]
[1738803103922,30.1280693,196.99,196.98,0.03]
[1738803104122,24.6752993,196.99,196.98,0.03]
[1738803104425,4.14,196.99,196.98,0.03]
[1738803106711,33.8915993,196.99,196.98,0.03]
[1738803107394,34.2680693,196.99,196.98,0.03]
[1738803108218,4.14,196.99,196.98,0.03]
[1738803110928,28.8152993,196.99,196.98,0.03]
[1738803112226,33.8915993,196.99,196.98,0.03]
[1738803112804,34.2680693,196.99,196.98,0.03]
[1738803113400,35.2680693,196.99,196.98,0.03]
[1738803113606,34.2680693,196.99,196.98,0.03]
[1738803113997,33.8915993,196.99,196.98,0.03]
[1738803114230,28.8152993,196.99,196.98,0.03]
[1738803114731,4.14,196.99,196.98,0.03]
[1738803115023,24.6752993,197.01,196.98,0.03]
[1738803115232,4.14,197.0,196.98,0.03]
[1738803116323,4.14,196.99,196.98,0.03]
[1738803117745,28.8152993,196.99,196.98,0.03]
[1738803119006,33.8915993,196.99,196.98,0.03]
[1738803119536,33.8915993,196.99,196.92,0.02629149]
[1738803119537,0.37647,196.95,196.92,0.02629149]
[1738803119712,24.6752993,196.93,196.92,0.02629149]
[1738803121319,60.2,196.94,196.92,0.02629149]
[1738803121522,60.2,196.96,196.93,24.6752993]
[1738803122023,60.2,196.96,196.92,24.70159079]
[1738803122240,60.2,196.96,196.93,24.6752993]
[1738803122840,60.2,196.96,196.92,0.02629149]
[1738803123133,24.6752993,196.95,196.92,0.02629149]
[1738803123839,84.8752993,196.96,196.92,0.02629149]
[1738803124337,60.2,196.96,196.92,0.02629149]
[1738803124535,60.2,196.96,196.92,24.70159079]
[1738803124737,60.2,196.96,196.92,0.02629149]
[1738803124738,0.063,196.95,196.92,0.02629149]
[1738803125235,0.063,196.95,196.93,24.6752993]
[1738803125438,0.063,196.95,196.92,24.70159079]
[1738803127424,0.063,196.95,196.93,5.0779]
[1738803127829,0.063,196.95,196.92,24.70159079]
[1738803128018,0.063,196.95,196.92,0.02629149]
[1738803128336,60.2,196.94,196.92,0.02629149]
[1738803130242,60.2,196.94,196.88,20.55865023]
[1738803134052,60.2,196.94,196.9,15.47955023]
[1738803134832,60.2,196.94,196.88,5.0791]
[1738803135033,60.2,196.94,196.86,1.6335]
[1738803135034,15.47955023,196.92,196.86,1.6335]
[1738803135335,15.47955023,196.92,196.86,6.7132]
[1738803135540,15.47955023,196.91,196.86,0.03]
[1738803135751,60.2,196.9,196.86,0.03]
[1738803135924,65.2787,196.9,196.86,0.03]
[1738803136125,80.75825023,196.9,196.86,0.03]
[1738803136654,80.75825023,196.9,196.88,0.03]
[1738803137637,65.2787,196.9,196.88,0.03]
[1738803138043,60.2,196.9,196.88,0.03]
[1738803141847,60.2,196.9,196.89,15.47955023]
[1738803142440,60.2,196.9,196.88,15.50955023]
[1738803143230,4.14,196.94,196.89,15.47955023]
[1738803143552,4.14,196.94,196.89,20.55845023]
[1738803144737,72.24793148,196.95,196.9,15.47955023]
[1738803144936,7.90793148,196.95,196.93,15.47955023]
[1738803145159,7.90793148,196.95,196.94,15.47955023]
[1738803145350,7.90793148,196.95,196.93,15.47955023]
[1738803145929,7.90793148,196.95,196.94,15.47955023]
[1738803146133,7.90793148,196.95,196.94,28.89139876]
[1738803146455,7.90793148,196.95,196.94,29.89139876]
[1738803146627,3.148e-05,196.95,196.94,30.65275826]
[1738803146829,15.66836593,196.99,196.96,13.41184853]
[1738803147123,15.66836593,196.99,196.98,15.47955023]
[1738803147950,15.66836593,196.99,196.98,20.55615023]
[1738803148359,15.66836593,196.99,196.98,33.96799876]
[1738803148528,15.66836593,196.99,196.98,35.22504564]
[1738803148732,6.593e-05,196.99,196.98,43.32794564]
[1738803149058,6.593e-05,196.99,196.98,44.08917543]
[1738803149361,6.593e-05,196.99,196.98,29.6096252]
[1738803149532,6.593e-05,196.99,196.98,28.6096252]
[1738803149736,30.99604595,197.01,197.0,48.89139876]
[1738803149931,15.47955023,197.12,197.01,14.41184853]
[1738803150162,76.04692302,197.13,197.04,28.89139876]
[1738803150163,19.98692302,197.13,197.04,28.89139876]
[1738803150343,19.98692302,197.13,197.08,15.47955023]
[1738803150535,19.98692302,197.13,197.07,15.47955023]
[1738803150955,15.47955023,197.1,197.03,15.47955023]
[1738803151156,15.47955023,197.07,197.0,5.0761]
[1738803151365,15.47955023,197.07,197.0,20.55565023]
[1738803151569,15.47955023,197.08,197.01,15.47955023]
[1738803152060,75.67955023,197.08,197.01,5.0757]
[1738803152365,15.47955023,197.07,197.01,5.0757]
[1738803153452,75.67955023,197.08,197.01,15.47955023]
[1738803153660,60.2,197.08,197.01,15.47955023]
[1738803153959,15.47955023,197.08,197.01,16.24076486]
[1738803154172,15.47955023,197.02,196.93,5.0778]
[1738803154462,15.47955023,197.0,196.93,5.0778]
[1738803155355,15.47955023,197.01,196.94,15.47955023]
[1738803155558,15.47955023,197.02,196.94,15.47955023]
[1738803155738,75.67955023,197.02,196.94,15.47955023]
[1738803156276,60.2,197.02,196.98,15.47955023]
[1738803156561,15.47955023,197.05,196.98,15.47955023]
[1738803156562,60.2,197.04,196.98,15.47955023]
[1738803156733,29.1207,197.04,196.98,15.47955023]
[1738803156933,0.12549,197.09,196.98,15.47955023]
[1738803156934,1.4207,197.11,197.03,15.47955023]
[1738803157164,4.14,197.12,197.06,15.47955023]
[1738803157356,4.14,197.12,197.08,20.55355023]
[1738803157735,4.14,197.12,197.08,5.074]
[1738803158058,5.5607,197.14,197.08,5.074]
[1738803158266,4.203,197.15,197.09,15.47955023]
[1738803158449,0.063,197.15,197.09,15.47955023]
[1738803158649,0.063,197.15,197.1,24.7105866]
[1738803159259,0.063,197.15,197.11,29.7838866]
[1738803159457,0.063,197.15,197.13,24.7105866]
[1738803159664,0.063,197.15,197.11,29.7838866]
[1738803160149,0.063,197.15,197.12,24.7105866]
[1738803160468,0.063,197.15,197.13,5.0727]
[1738803161338,0.063,197.15,197.14,24.7105866]
[1738803162447,0.063,197.15,197.14,38.88307725]
[1738803162666,0.0001,197.15,197.14,40.40517725]
[1738803164961,0.0001,197.15,197.14,26.99332872]
[1738803165171,0.0001,197.15,197.14,5.0725]
[1738803165365,0.0001,197.15,197.09,14.2063]
[1738803165366,0.0001,197.15,197.1,29.7840866]
[1738803165555,0.0001,197.15,197.11,24.7105866]
[1738803166084,0.0001,197.15,197.14,20.0]
[1738803166262,32.10503461,197.26,197.21,20.0]
[1738803166263,0.063,197.26,197.21,20.0]
[1738803166581,0.063,197.26,197.24,24.7105866]
[1738803167077,0.063,197.26,197.24,29.7804866]
[1738803167681,0.063,197.26,197.24,43.95255058]
[1738803167682,0.0001,197.25,197.24,43.95255058]
[1738803167973,0.063,197.27,197.25,13.41184853]
[1738803168181,0.063,197.27,197.26,25.47068326]
[1738803170189,0.063,197.27,197.26,30.54008326]
[1738803170690,0.063,197.3,197.26,56.62553179]
[1738803170856,0.063,197.3,197.29,24.7105866]
[1738803171682,0.063,197.3,197.29,29.7791866]
[1738803171877,0.063,197.3,197.27,29.7795866]
[1738803172068,0.063,197.3,197.27,5.069]
[1738803172963,0.063,197.3,197.27,24.7105866]
[1738803173577,0.063,197.3,197.25,29.7802866]
[1738803173755,0.063,197.27,197.24,0.03]
[1738803174074,0.063,197.27,197.24,29.8104866]
[1738803175156,0.063,197.27,197.26,24.7105866]
[1738803176385,0.063,197.27,197.26,29.7799866]
[1738803177587,0.063,197.27,197.26,24.7105866]
[1738803177776,0.063,197.27,197.24,5.0997]
[1738803178285,0.063,197.27,197.24,29.8102866]
[1738803180988,0.063,197.27,197.26,24.7105866]
[1738803181564,0.063,197.27,197.26,25.47077914]
[1738803182987,0.063,197.27,197.26,29.7799866]
[1738803183179,0.063,197.27,197.26,5.0694]
[1738803183582,0.063,197.27,197.25,5.0696]
[1738803184470,0.063,197.27,197.24,0.03]
[1738803184788,24.7735866,197.27,197.24,0.03]
[1738803184978,24.7105866,197.26,197.24,0.03]
[1738803185180,1.4207,197.25,197.24,0.03]
[1738803188672,1.4207,197.26,197.24,0.03]
[1738803189382,1.4207,197.26,197.24,24.7405866]
[1738803189785,0.063,197.27,197.24,24.7405866]
[1738803190380,0.063,197.27,197.26,24.7105866]
[1738803190989,0.063,197.27,197.26,29.7799866]
[1738803191892,0.063,197.27,197.25,5.0697]
[1738803192095,0.063,197.27,197.24,0.03]
[1738803192481,0.063,197.27,197.24,5.0999]
[1738803193487,0.063,197.27,197.24,0.03]
[1738803194483,31.3586866,197.25,197.24,0.03]
[1738803194690,31.7351566,197.25,197.24,0.03]
[1738803194891,31.7351566,197.25,197.07,6.1553]
[1738803194892,0.37647,197.21,197.09,26.2500866]
[1738803195198,24.7105866,197.16,197.09,5.0736]
[1738803195399,24.7105866,197.16,197.08,24.7105866]
[1738803195581,0.25098,197.18,197.07,29.7845866]
[1738803195582,24.7105866,197.15,197.07,29.7845866]
[1738803195995,1.6462,197.17,197.07,29.7845866]
[1738803195996,24.7105866,197.13,197.07,5.074]
[1738803196884,24.7105866,197.13,197.06,24.7735866]
[1738803197087,0.25098,197.11,197.06,0.063]
[1738803197472,24.7105866,197.14,197.06,24.7735866]
[1738803197675,24.7105866,197.14,197.07,0.063]
[1738803197996,31.2110866,197.15,197.07,24.7735866]
[1738803198820,32.5,197.14,197.07,24.7735866]
[1738803199104,32.5,197.16,197.09,24.7105866]
[1738803199305,32.5,197.16,197.11,24.7105866]
[1738803199483,32.5,197.18,197.11,24.7105866]
[1738803199679,24.7105866,197.17,197.1,24.7105866]
[1738803200195,28.8505866,197.17,197.1,24.7105866]
[1738803200716,28.8505866,197.17,197.08,24.7105866]
[1738803200717,24.7105866,197.16,197.08,24.7105866]
[1738803201094,24.7105866,197.15,197.08,24.7105866]
[1738803201689,24.7105866,197.15,197.07,29.8477866]
[1738803201892,57.2105866,197.14,197.07,29.8477866]
[1738803202119,57.2105866,197.14,197.07,0.063]
[1738803204016,24.9615666,197.13,197.07,0.063]
[1738803204221,24.7105866,197.11,197.07,0.063]
[1738803204517,57.2105866,197.1,197.07,0.063]
[1738803204818,24.7105866,197.09,197.07,0.063]
[1738803205018,32.5,197.1,197.07,0.063]
[1738803205019,57.2105866,197.1,197.07,0.063]
[1738803205219,32.5,197.1,197.07,0.063]
[1738803205606,57.2105866,197.1,197.07,0.063]
[1738803205929,32.5,197.1,197.07,0.063]
[1738803207318,24.7105866,197.08,197.07,0.063]
[1738803207894,24.9615666,197.08,197.07,0.063]
[1738803208725,15.7118243,197.08,197.07,0.063]
[1738803209103,20.7858243,197.08,197.07,0.063]
[1738803212119,4.14,197.08,197.07,0.063]
[1738803212523,32.5,197.08,197.07,15.5238443]
[1738803212699,82.4,197.09,197.07,0.063]
[1738803212899,13.78831853,197.07,197.0,0.03]
[1738803213125,20.12549,197.03,197.0,0.03]
[1738803213434,15.4608443,197.01,197.0,0.03]
[1738803214303,32.5,197.01,197.0,0.03]
[1738803217247,48.2118243,197.01,197.0,0.03]
[1738803217433,15.7118243,197.01,197.0,0.03]
[1738803218113,20.9131143,197.01,197.0,0.03]
[1738803218317,43.4213586,197.01,197.0,0.03]
[1738803218514,86.83320713,197.01,197.0,0.03]
[1738803218715,79.67748099,197.01,197.0,0.03]
[1738803220935,0.25098,196.97,196.88,29.87506246]
[1738803221112,24.76596246,196.95,196.88,29.87506246]
[1738803222328,32.5,196.94,196.88,29.87506246]
[1738803224440,32.5,196.94,196.88,24.79596246]
[1738803224937,32.5,196.94,196.88,29.87516246]
[1738803226368,32.5,196.94,196.89,24.76596246]
[1738803227318,32.5,196.96,196.89,24.76596246]
[1738803228639,57.26596246,196.96,196.9,5.0787]
[1738803230054,0.37647,196.89,196.88,0.03]
[1738803230346,25.01694246,196.89,196.88,0.03]
[1738803231537,24.76596246,196.89,196.88,0.03]
[1738803231743,54.76596246,196.89,196.88,0.03]
[1738803232847,55.01694246,196.89,196.88,0.03]
[1738803235131,30.0,196.89,196.88,0.03]
[1738803235332,112.24386246,196.93,196.88,0.03]
[1738803235520,24.76596246,196.92,196.88,0.03]
[1738803236143,4.16,196.91,196.88,0.03]
[1738803236749,28.92596246,196.91,196.88,0.03]
[1738803238652,4.16,196.91,196.88,0.03]
[1738803239338,32.5,196.9,196.88,0.03]
[1738803239947,15.48476893,196.89,196.88,0.03]
[1738803240253,47.98476893,196.89,196.88,0.03]
[1738803241163,53.31464893,196.89,196.88,0.03]
[1738803242057,20.94013893,196.89,196.88,0.03]
[1738803242265,20.94013893,196.89,196.88,0.0001]
[1738803242266,35.35198746,196.89,196.88,0.0001]
[1738803242427,96.35198746,196.89,196.88,0.0001]
[1738803242628,13.78831853,196.88,196.87,0.063]
[1738803242823,31.37647,196.87,196.86,0.03]
[1738803243031,5.33168,196.82,196.8,0.03]
[1738803243249,36.42670786,196.82,196.8,0.03]
[1738803243431,66.42670786,196.82,196.8,0.03]
[1738803243837,36.42670786,196.82,196.8,0.03]
[1738803244058,0.37647,196.81,196.8,0.03]
[1738803244362,31.34600786,196.81,196.8,0.03]
[1738803244567,15.73574893,196.81,196.8,0.03]
[1738803244738,15.48476893,196.81,196.8,0.03]
[1738803244936,15.48476893,196.82,196.8,0.03]
[1738803245131,15.48476893,196.81,196.8,0.03]
[1738803245956,15.73574893,196.81,196.8,0.03]
[1738803246255,15.86123893,196.81,196.8,0.03]
[1738803246853,45.73574893,196.81,196.8,0.03]
[1738803249457,15.73574893,196.81,196.8,0.03]
[1738803249654,15.48476893,196.84,196.8,0.03]